[Event "Late-Titled-Tuesday-Blitz-January-30-2024"]
[Site "Chess.com"]
[Date "2024.01.30"]
[Round "2"]
[White "rikchessmx"]
[Black "BigAl"]
[Result "0-1"]
[WhiteElo "2326"]
[BlackElo "2540"]
[TimeControl "180+1"]
[EndTime "14:16:21 PST"]
[Termination "BigAl won by resignation"]

1. e4 {[%clk 0:01:25.7]} 1... c6 {[%clk 0:02:54.9]} 2. d4 {[%clk 0:01:23.3]}
2... d5 {[%clk 0:02:55.5]} 3. Nc3 {[%clk 0:01:23.9]} 3... dxe4 {[%clk
0:02:55.9]} 4. Nxe4 {[%clk 0:01:23.2]} 4... Nf6 {[%clk 0:02:56.1]} 5. Ng5 {[%clk
0:01:23.7]} 5... Bf5 {[%clk 0:02:56.6]} 6. N1f3 {[%clk 0:01:21.4]} 6... h6
{[%clk 0:02:55.3]} 7. Nh3 {[%clk 0:01:18.4]} 7... g5 {[%clk 0:02:50.7]} 8. Ne5
{[%clk 0:01:15.7]} 8... Nbd7 {[%clk 0:02:49]} 9. Nxd7 {[%clk 0:01:14.4]} 9...
Qxd7 {[%clk 0:02:49.3]} 10. Bc4 {[%clk 0:01:14.9]} 10... Bxh3 {[%clk 0:02:44.9]}
11. gxh3 {[%clk 0:01:14.2]} 11... Qxh3 {[%clk 0:02:45]} 12. Qe2 {[%clk 0:01:14]}
12... e6 {[%clk 0:02:41.1]} 13. Bd2 {[%clk 0:01:10.2]} 13... Qg4 {[%clk
0:02:38.1]} 14. Qd3 {[%clk 0:01:00.6]} 14... Qe4+ {[%clk 0:02:37.4]} 15. Qxe4
{[%clk 0:00:58.2]} 15... Nxe4 {[%clk 0:02:38.3]} 16. Be3 {[%clk 0:00:58.7]}
16... Bg7 {[%clk 0:02:34]} 17. O-O-O {[%clk 0:00:57.4]} 17... O-O-O {[%clk
0:02:33.8]} 18. h4 {[%clk 0:00:55.6]} 18... Bf6 {[%clk 0:02:23.1]} 19. hxg5
{[%clk 0:00:52.8]} 19... Bxg5 {[%clk 0:02:21.6]} 20. f4 {[%clk 0:00:50.3]} 20...
Bf6 {[%clk 0:02:19.9]} 21. f5 {[%clk 0:00:49.5]} 21... Ng3 {[%clk 0:02:07.8]}
22. fxe6 {[%clk 0:00:43.2]} 22... Nxh1 {[%clk 0:02:07.5]} 23. Rxh1 {[%clk
0:00:42.6]} 23... fxe6 {[%clk 0:02:08.2]} 24. Bxe6+ {[%clk 0:00:42.1]} 24... Kb8
{[%clk 0:02:08.3]} 25. c3 {[%clk 0:00:38.3]} 25... Bg5 {[%clk 0:02:08.3]} 26.
Bd2 {[%clk 0:00:33]} 26... Rdf8 {[%clk 0:02:00.2]} 27. d5 {[%clk 0:00:31.1]}
27... cxd5 {[%clk 0:01:59.2]} 28. Bxd5 {[%clk 0:00:30.8]} 28... Kc7 {[%clk
0:01:54.4]} 29. c4 {[%clk 0:00:28.5]} 29... b6 {[%clk 0:01:54.9]} 30. Kc2 {[%clk
0:00:28.5]} 30... Rf2 {[%clk 0:01:54.3]} 31. Rd1 {[%clk 0:00:27.1]} 31... h5
{[%clk 0:01:51.7]} 32. Kd3 {[%clk 0:00:22.6]} 32... Rxd2+ {[%clk 0:01:51.4]} 33.
Rxd2 {[%clk 0:00:22.8]} 33... Bxd2 {[%clk 0:01:52.3]} 34. Kxd2 {[%clk
0:00:23.6]} 34... a5 {[%clk 0:01:52.1]} 35. b3 {[%clk 0:00:22.8]} 35... Kd6
{[%clk 0:01:52]} 36. Kd3 {[%clk 0:00:22.4]} 36... h4 {[%clk 0:01:52.1]} 37. a3
{[%clk 0:00:21.1]} 37... h3 {[%clk 0:01:49.5]} 38. b4 {[%clk 0:00:20.5]} 38...
a4 {[%clk 0:01:49.9]} 39. Bh1 {[%clk 0:00:18.1]} 39... h2 {[%clk 0:01:50.2]} 40.
Kd4 {[%clk 0:00:17.7]} 40... Rh4+ {[%clk 0:01:50.1]} 41. Kd3 {[%clk 0:00:17.9]}
41... Rh3+ {[%clk 0:01:50.3]} 42. Kd4 {[%clk 0:00:17.7]} 42... Rxa3 {[%clk
0:01:50]} 43. c5+ {[%clk 0:00:18.6]} 43... bxc5+ {[%clk 0:01:50.7]} 44. bxc5+
{[%clk 0:00:19]} 44... Kc7 {[%clk 0:01:51.6]} 45. Kc4 {[%clk 0:00:19.2]} 45...
Ra1 {[%clk 0:01:51.2]} 0-1

[Event "Late-Titled-Tuesday-Blitz-January-30-2024"]
[Site "Chess.com"]
[Date "2024.01.30"]
[Round "2"]
[White "N_Mullodzhanov"]
[Black "protectiago"]
[Result "1-0"]
[WhiteElo "2454"]
[BlackElo "2058"]
[TimeControl "180+1"]
[EndTime "14:16:22 PST"]
[Termination "N_Mullodzhanov won on time"]

1. e4 {[%clk 0:03:00.9]} 1... e5 {[%clk 0:02:55.3]} 2. Nf3 {[%clk 0:03:00.8]}
2... Nc6 {[%clk 0:02:54]} 3. Bc4 {[%clk 0:03:01.1]} 3... Bc5 {[%clk 0:02:53]} 4.
c3 {[%clk 0:03:01.1]} 4... Nf6 {[%clk 0:02:52.9]} 5. d4 {[%clk 0:03:01.3]} 5...
exd4 {[%clk 0:02:53.1]} 6. cxd4 {[%clk 0:03:02.2]} 6... Bb4+ {[%clk 0:02:53.1]}
7. Nc3 {[%clk 0:03:02.6]} 7... Nxe4 {[%clk 0:02:51.7]} 8. O-O {[%clk 0:03:02.9]}
8... Bxc3 {[%clk 0:02:51.2]} 9. bxc3 {[%clk 0:03:01.3]} 9... d5 {[%clk
0:02:50.9]} 10. Bd3 {[%clk 0:03:01.1]} 10... O-O {[%clk 0:02:49.6]} 11. Qc2
{[%clk 0:03:01.1]} 11... Re8 {[%clk 0:02:43.7]} 12. Rb1 {[%clk 0:03:00.5]} 12...
h6 {[%clk 0:02:24.1]} 13. Bf4 {[%clk 0:02:59]} 13... Qf6 {[%clk 0:02:16.5]} 14.
Bxc7 {[%clk 0:02:57.4]} 14... Bg4 {[%clk 0:01:57.7]} 15. Ne5 {[%clk 0:02:53.3]}
15... Qg5 {[%clk 0:01:35.1]} 16. Nxg4 {[%clk 0:02:50.3]} 16... Qxg4 {[%clk
0:01:22.1]} 17. f3 {[%clk 0:02:49.5]} 17... Qd7 {[%clk 0:01:21.7]} 18. Rxb7
{[%clk 0:02:27.5]} 18... Rac8 {[%clk 0:01:21.4]} 19. fxe4 {[%clk 0:02:25.9]}
19... Rxc7 {[%clk 0:01:05.2]} 20. Rxc7 {[%clk 0:02:25.1]} 20... Qxc7 {[%clk
0:01:05.6]} 21. exd5 {[%clk 0:02:22.2]} 21... Ne7 {[%clk 0:00:58.9]} 22. Qb3
{[%clk 0:02:13.9]} 22... Qd6 {[%clk 0:00:49.3]} 23. c4 {[%clk 0:02:10]} 23...
Rb8 {[%clk 0:00:47.8]} 24. c5 {[%clk 0:01:36]} 24... Qd8 {[%clk 0:00:34.7]} 25.
Qc4 {[%clk 0:01:33.4]} 25... Kh8 {[%clk 0:00:10.6]} 26. d6 {[%clk 0:01:32.8]}
26... Nc6 {[%clk 0:00:08.9]} 27. Qxf7 {[%clk 0:01:30.1]} 27... Nxd4 {[%clk
0:00:08.2]} 28. Qg6 {[%clk 0:01:28.7]} 28... Qg8 {[%clk 0:00:07.2]} 29. d7
{[%clk 0:01:27.2]} 29... Rd8 {[%clk 0:00:05.8]} 30. a4 {[%clk 0:01:23.5]} 30...
Rxd7 {[%clk 0:00:04.7]} 31. Rf8 {[%clk 0:01:21.5]} 1-0

[Event "Late-Titled-Tuesday-Blitz-January-30-2024"]
[Site "Chess.com"]
[Date "2024.01.30"]
[Round "2"]
[White "chessisveryfun1264"]
[Black "Iball95"]
[Result "0-1"]
[WhiteElo "2548"]
[BlackElo "2788"]
[TimeControl "180+1"]
[EndTime "14:16:36 PST"]
[Termination "Iball95 won by resignation"]

1. e4 {[%clk 0:03:00.9]} 1... c5 {[%clk 0:02:59.9]} 2. Nf3 {[%clk 0:03:00.7]}
2... e6 {[%clk 0:03:00.4]} 3. g3 {[%clk 0:03:00.5]} 3... Nc6 {[%clk 0:03:00.6]}
4. Bg2 {[%clk 0:03:01.2]} 4... d5 {[%clk 0:03:00.8]} 5. exd5 {[%clk 0:03:01]}
5... exd5 {[%clk 0:03:01.7]} 6. Rf1 {[%clk 0:03:00.8]} 6... Nf6 {[%clk
0:02:58.8]} 7. Qe2+ {[%clk 0:02:58.4]} 7... Be7 {[%clk 0:02:58.5]} 8. d3 {[%clk
0:02:48.7]} 8... O-O {[%clk 0:02:58]} 9. Bg5 {[%clk 0:02:42.2]} 9... Re8 {[%clk
0:02:56.5]} 10. Qd2 {[%clk 0:02:37.4]} 10... h6 {[%clk 0:02:54.7]} 11. Bf4
{[%clk 0:02:33]} 11... Bf8+ {[%clk 0:02:22.1]} 12. Kd1 {[%clk 0:02:32.7]} 12...
g5 {[%clk 0:02:22.2]} 13. Nxg5 {[%clk 0:02:23]} 13... hxg5 {[%clk 0:02:23.1]}
14. Bxg5 {[%clk 0:02:23.9]} 14... d4 {[%clk 0:02:01.2]} 15. Qf4 {[%clk
0:02:12.3]} 15... Bg7 {[%clk 0:02:00.5]} 16. Nd2 {[%clk 0:02:12.4]} 16... Bg4+
{[%clk 0:01:55.9]} 17. f3 {[%clk 0:02:10.1]} 17... Bh5 {[%clk 0:01:52.6]} 18.
Ne4 {[%clk 0:02:10]} 18... Rxe4 {[%clk 0:01:46.7]} 19. dxe4 {[%clk 0:02:10.9]}
19... Qe7 {[%clk 0:01:37.6]} 20. Re1 {[%clk 0:02:05.7]} 20... Qe5 {[%clk
0:01:33.6]} 21. g4 {[%clk 0:01:52.1]} 21... Bg6 {[%clk 0:01:30.1]} 22. h4 {[%clk
0:01:33.7]} 22... Nd7 {[%clk 0:01:17.2]} 23. h5 {[%clk 0:01:30.8]} 23... Bh7
{[%clk 0:01:17.9]} 24. Bf1 {[%clk 0:01:29.2]} 24... d3 {[%clk 0:01:05]} 25. Qxe5
{[%clk 0:01:23.8]} 25... Ndxe5 {[%clk 0:01:05.1]} 26. Bg2 {[%clk 0:01:12.3]}
26... Nd4 {[%clk 0:01:05.2]} 27. cxd3 {[%clk 0:01:03]} 27... Nxd3 {[%clk
0:01:06.1]} 28. Re3 {[%clk 0:01:02.3]} 28... Nxb2+ {[%clk 0:01:06.3]} 29. Kc1
{[%clk 0:01:00.5]} 29... Nc4 {[%clk 0:01:06.2]} 30. Re1 {[%clk 0:00:58.8]} 30...
Nxf3 {[%clk 0:01:03.8]} 31. Bxf3 {[%clk 0:00:54.3]} 31... Bxa1 {[%clk
0:01:04.1]} 32. Bd1 {[%clk 0:00:47.2]} 32... Bd4 {[%clk 0:00:50.4]} 33. Bb3
{[%clk 0:00:46]} 33... Ne5 {[%clk 0:00:51.2]} 34. Rf1 {[%clk 0:00:43.8]} 34...
c4 {[%clk 0:00:51.3]} 35. Ba4 {[%clk 0:00:43.4]} 35... Bxe4 {[%clk 0:00:47.7]}
0-1

[Event "Late-Titled-Tuesday-Blitz-January-30-2024"]
[Site "Chess.com"]
[Date "2024.01.30"]
[Round "2"]
[White "falzehope0"]
[Black "chegueps"]
[Result "0-1"]
[WhiteElo "2376"]
[BlackElo "2614"]
[TimeControl "180+1"]
[EndTime "14:16:40 PST"]
[Termination "chegueps won by checkmate"]

1. d4 {[%clk 0:03:00.9]} 1... Nf6 {[%clk 0:02:59.8]} 2. e3 {[%clk 0:03:01.8]}
2... d5 {[%clk 0:02:59.1]} 3. Bd3 {[%clk 0:03:01.3]} 3... c5 {[%clk 0:02:59.4]}
4. c3 {[%clk 0:03:01.1]} 4... Nc6 {[%clk 0:02:59.4]} 5. f4 {[%clk 0:03:00.4]}
5... Bg4 {[%clk 0:02:55.6]} 6. Ne2 {[%clk 0:02:53.6]} 6... e6 {[%clk 0:02:55.2]}
7. Nd2 {[%clk 0:02:50]} 7... Be7 {[%clk 0:02:51.6]} 8. O-O {[%clk 0:02:36.2]}
8... O-O {[%clk 0:02:50.8]} 9. Nf3 {[%clk 0:02:01.2]} 9... Bxf3 {[%clk
0:02:46.1]} 10. gxf3 {[%clk 0:01:58.9]} 10... a6 {[%clk 0:02:37.4]} 11. Kh1
{[%clk 0:01:55.7]} 11... b5 {[%clk 0:02:35.9]} 12. b3 {[%clk 0:01:51.6]} 12...
c4 {[%clk 0:02:34.8]} 13. Bc2 {[%clk 0:01:48.1]} 13... g6 {[%clk 0:02:25.5]} 14.
b4 {[%clk 0:01:38.6]} 14... a5 {[%clk 0:02:23.6]} 15. a3 {[%clk 0:01:36.8]}
15... axb4 {[%clk 0:02:23.1]} 16. Bb2 {[%clk 0:01:36.3]} 16... b3 {[%clk
0:02:14.3]} 17. Bb1 {[%clk 0:01:31.7]} 17... Ra7 {[%clk 0:02:12.4]} 18. e4
{[%clk 0:01:29.9]} 18... Qa8 {[%clk 0:02:09.2]} 19. Qc1 {[%clk 0:01:29]} 19...
b4 {[%clk 0:02:03.5]} 20. cxb4 {[%clk 0:01:27.1]} 20... Nxb4 {[%clk 0:02:00.5]}
21. e5 {[%clk 0:01:25.9]} 21... Nh5 {[%clk 0:01:59.6]} 22. Rg1 {[%clk
0:01:21.2]} 22... Ng7 {[%clk 0:01:51.7]} 23. f5 {[%clk 0:01:16.1]} 23... exf5
{[%clk 0:01:47.8]} 24. Qh6 {[%clk 0:01:09.7]} 24... Rc8 {[%clk 0:01:34.9]} 25.
Rg3 {[%clk 0:01:08.5]} 25... Bf8 {[%clk 0:01:23.7]} 26. Nf4 {[%clk 0:00:49.6]}
26... c3 {[%clk 0:01:22.4]} 27. axb4 {[%clk 0:00:35.6]} 27... Rxa1 {[%clk
0:01:18.8]} 28. Bxa1 {[%clk 0:00:35.3]} 28... c2 {[%clk 0:01:15.6]} 29. Bxc2
{[%clk 0:00:32.8]} 29... bxc2 {[%clk 0:01:16.5]} 30. Bb2 {[%clk 0:00:31.3]}
30... c1=Q+ {[%clk 0:01:15.3]} 31. Bxc1 {[%clk 0:00:31]} 31... Rxc1+ {[%clk
0:01:16.2]} 32. Kg2 {[%clk 0:00:31.3]} 32... Qa2+ {[%clk 0:01:11.3]} 33. Kh3
{[%clk 0:00:30.7]} 33... Ne6 {[%clk 0:01:08.1]} 34. Qh4 {[%clk 0:00:26]} 34...
Be7 {[%clk 0:01:05.5]} 35. Qxe7 {[%clk 0:00:13.1]} 35... Nxf4+ {[%clk
0:01:03.5]} 36. Kh4 {[%clk 0:00:12.4]} 36... Qxh2+ {[%clk 0:01:03.1]} 37. Kg5
{[%clk 0:00:11.6]} 37... Qxg3+ {[%clk 0:01:02.7]} 38. Kf6 {[%clk 0:00:12]} 38...
Qh4# {[%clk 0:01:01.5]} 0-1

[Event "Late-Titled-Tuesday-Blitz-January-30-2024"]
[Site "Chess.com"]
[Date "2024.01.30"]
[Round "2"]
[White "NowInChess"]
[Black "brm72"]
[Result "0-1"]
[WhiteElo "2296"]
[BlackElo "2696"]
[TimeControl "180+1"]
[EndTime "14:16:48 PST"]
[Termination "brm72 won by resignation"]

1. e4 {[%clk 0:03:00.9]} 1... c5 {[%clk 0:02:58.3]} 2. d3 {[%clk 0:03:01]} 2...
e6 {[%clk 0:02:57.1]} 3. g3 {[%clk 0:03:01.4]} 3... d5 {[%clk 0:02:57.5]} 4. Nd2
{[%clk 0:03:00.9]} 4... Nf6 {[%clk 0:02:57.9]} 5. Bg2 {[%clk 0:03:01.1]} 5... g6
{[%clk 0:02:58.4]} 6. Ngf3 {[%clk 0:03:01.3]} 6... Bg7 {[%clk 0:02:59]} 7. O-O
{[%clk 0:03:01.4]} 7... O-O {[%clk 0:02:59.6]} 8. Re1 {[%clk 0:02:57.5]} 8...
Nc6 {[%clk 0:02:59.8]} 9. c3 {[%clk 0:02:55.2]} 9... a5 {[%clk 0:02:59.9]} 10.
a4 {[%clk 0:02:54.5]} 10... b6 {[%clk 0:03:00]} 11. e5 {[%clk 0:02:48.1]} 11...
Nd7 {[%clk 0:02:59.8]} 12. d4 {[%clk 0:02:48.4]} 12... cxd4 {[%clk 0:02:38.9]}
13. cxd4 {[%clk 0:02:49.3]} 13... f6 {[%clk 0:02:35.4]} 14. exf6 {[%clk
0:02:41]} 14... Qxf6 {[%clk 0:02:36.3]} 15. Nb3 {[%clk 0:02:33.9]} 15... Ba6
{[%clk 0:02:28.4]} 16. Bg5 {[%clk 0:02:29.2]} 16... Qf7 {[%clk 0:02:24]} 17. Rc1
{[%clk 0:02:13.9]} 17... Nb4 {[%clk 0:02:11.7]} 18. Rc7 {[%clk 0:01:49]} 18...
Rac8 {[%clk 0:02:08.1]} 19. Rxc8 {[%clk 0:01:34.3]} 19... Rxc8 {[%clk
0:02:04.9]} 20. Bh3 {[%clk 0:01:28.9]} 20... Rc6 {[%clk 0:01:48.5]} 21. Ne5
{[%clk 0:01:14.6]} 21... Nxe5 {[%clk 0:01:47.3]} 22. dxe5 {[%clk 0:01:15.1]}
22... Nd3 {[%clk 0:01:41.4]} 23. Re2 {[%clk 0:00:53.6]} 23... Nxe5 {[%clk
0:01:40.7]} 24. Nd4 {[%clk 0:00:49.7]} 24... Nf3+ {[%clk 0:00:54.2]} 25. Nxf3
{[%clk 0:00:49.7]} 25... Qxf3 {[%clk 0:00:55]} 26. Bf1 {[%clk 0:00:48.3]} 26...
Bxe2 {[%clk 0:00:53.3]} 27. Bxe2 {[%clk 0:00:48.3]} 27... Qf5 {[%clk 0:00:52.6]}
28. Bf4 {[%clk 0:00:45]} 28... g5 {[%clk 0:00:51.2]} 29. Be3 {[%clk 0:00:32.5]}
29... h6 {[%clk 0:00:47.9]} 30. Bg4 {[%clk 0:00:19.8]} 30... Qe4 {[%clk
0:00:43]} 31. Qd2 {[%clk 0:00:14.5]} 31... Qxg4 {[%clk 0:00:41.6]} 0-1

[Event "Late-Titled-Tuesday-Blitz-January-30-2024"]
[Site "Chess.com"]
[Date "2024.01.30"]
[Round "2"]
[White "Malev212"]
[Black "Azerichess"]
[Result "0-1"]
[WhiteElo "2658"]
[BlackElo "3076"]
[TimeControl "180+1"]
[EndTime "14:16:49 PST"]
[Termination "Azerichess won by resignation"]

1. e4 {[%clk 0:03:00.9]} 1... d5 {[%clk 0:02:55.9]} 2. exd5 {[%clk 0:03:00]}
2... Qxd5 {[%clk 0:02:56.8]} 3. Nc3 {[%clk 0:02:59.5]} 3... Qa5 {[%clk
0:02:57.3]} 4. g3 {[%clk 0:02:59.7]} 4... Nf6 {[%clk 0:02:56.2]} 5. Bg2 {[%clk
0:02:59.2]} 5... Nc6 {[%clk 0:02:54.5]} 6. Nf3 {[%clk 0:02:54.6]} 6... e5 {[%clk
0:02:51]} 7. O-O {[%clk 0:02:53.8]} 7... Bg4 {[%clk 0:02:51.3]} 8. h3 {[%clk
0:02:52.5]} 8... Bh5 {[%clk 0:02:51]} 9. d3 {[%clk 0:02:44.2]} 9... O-O-O {[%clk
0:02:50.9]} 10. Bd2 {[%clk 0:02:42.5]} 10... Qb6 {[%clk 0:02:47.8]} 11. g4
{[%clk 0:02:29.9]} 11... Bg6 {[%clk 0:02:47.1]} 12. Nh4 {[%clk 0:02:29.9]} 12...
Nd4 {[%clk 0:02:36.3]} 13. a4 {[%clk 0:02:15.5]} 13... a5 {[%clk 0:02:30.2]} 14.
Nb5 {[%clk 0:02:06.6]} 14... Bc5 {[%clk 0:02:10.9]} 15. Nxd4 {[%clk 0:01:59.5]}
15... Bxd4 {[%clk 0:02:11.8]} 16. Nxg6 {[%clk 0:01:51.6]} 16... hxg6 {[%clk
0:02:12.7]} 17. c3 {[%clk 0:01:46.8]} 17... Bc5 {[%clk 0:02:12.6]} 18. b4 {[%clk
0:01:41]} 18... axb4 {[%clk 0:01:55.9]} 19. a5 {[%clk 0:01:40.3]} 19... Qb5
{[%clk 0:01:38.5]} 20. a6 {[%clk 0:01:28.9]} 20... bxa6 {[%clk 0:01:35.2]} 21.
d4 {[%clk 0:01:18.2]} 21... exd4 {[%clk 0:01:28.5]} 22. cxb4 {[%clk 0:01:12.7]}
22... Bb6 {[%clk 0:01:28.8]} 23. Qf3 {[%clk 0:01:08.2]} 23... Nd5 {[%clk
0:01:20.9]} 24. Rfc1 {[%clk 0:00:59.4]} 24... d3 {[%clk 0:01:16.6]} 25. Ra3
{[%clk 0:00:54.2]} 25... Rd6 {[%clk 0:01:09.9]} 26. Rxd3 {[%clk 0:00:51.8]}
26... Rhd8 {[%clk 0:01:09.8]} 27. Qxf7 {[%clk 0:00:36.9]} 27... Qxd3 {[%clk
0:01:07.5]} 28. Bg5 {[%clk 0:00:27.8]} 28... Nf6 {[%clk 0:00:56.1]} 29. Be3
{[%clk 0:00:25]} 29... Qb5 {[%clk 0:00:43.4]} 30. Qxg7 {[%clk 0:00:21.9]} 30...
Rd1+ {[%clk 0:00:42.9]} 31. Rxd1 {[%clk 0:00:20.1]} 31... Rxd1+ {[%clk
0:00:43.8]} 0-1

[Event "Late-Titled-Tuesday-Blitz-January-30-2024"]
[Site "Chess.com"]
[Date "2024.01.30"]
[Round "2"]
[White "Kombinator01"]
[Black "chenxiaoyuer"]
[Result "1-0"]
[WhiteElo "2478"]
[BlackElo "2746"]
[TimeControl "180+1"]
[EndTime "14:16:49 PST"]
[Termination "Kombinator01 won by checkmate"]

1. d4 {[%clk 0:03:00.9]} 1... Nf6 {[%clk 0:02:59.8]} 2. Bf4 {[%clk 0:03:00]}
2... g6 {[%clk 0:02:59.2]} 3. Nc3 {[%clk 0:02:59.8]} 3... d5 {[%clk 0:02:53]} 4.
e3 {[%clk 0:02:57.3]} 4... Bg7 {[%clk 0:02:52.3]} 5. h4 {[%clk 0:02:56.9]} 5...
h5 {[%clk 0:02:49.8]} 6. Nf3 {[%clk 0:02:56.9]} 6... O-O {[%clk 0:02:46.3]} 7.
Ne5 {[%clk 0:02:51.1]} 7... c6 {[%clk 0:02:39.5]} 8. Be2 {[%clk 0:02:51.1]} 8...
Nbd7 {[%clk 0:02:32.3]} 9. Qd3 {[%clk 0:02:39.1]} 9... Nxe5 {[%clk 0:02:27.6]}
10. Bxe5 {[%clk 0:02:39.9]} 10... Bf5 {[%clk 0:02:27.5]} 11. Qd2 {[%clk
0:02:37.6]} 11... Bh6 {[%clk 0:02:21.6]} 12. f3 {[%clk 0:02:34]} 12... Nd7
{[%clk 0:02:18.1]} 13. Bf4 {[%clk 0:02:28.5]} 13... Bxf4 {[%clk 0:02:08]} 14.
exf4 {[%clk 0:02:29.4]} 14... Nf6 {[%clk 0:02:08.2]} 15. O-O-O {[%clk
0:02:26.6]} 15... b5 {[%clk 0:02:05.4]} 16. g4 {[%clk 0:02:19.9]} 16... Bd7
{[%clk 0:01:39.9]} 17. f5 {[%clk 0:02:03]} 17... b4 {[%clk 0:01:36]} 18. fxg6
{[%clk 0:00:59.7]} 18... fxg6 {[%clk 0:01:26.4]} 19. Qg5 {[%clk 0:00:50.6]}
19... bxc3 {[%clk 0:01:13.9]} 20. Qxg6+ {[%clk 0:00:50.3]} 20... Kh8 {[%clk
0:01:14.1]} 21. Bd3 {[%clk 0:00:42.5]} 21... cxb2+ {[%clk 0:01:11.5]} 22. Kb1
{[%clk 0:00:42.5]} 22... Qe8 {[%clk 0:00:51.4]} 23. Qh6+ {[%clk 0:00:40.9]}
23... Kg8 {[%clk 0:00:51.2]} 24. g5 {[%clk 0:00:17.7]} 24... Ne4 {[%clk
0:00:46.8]} 25. fxe4 {[%clk 0:00:18.6]} 25... dxe4 {[%clk 0:00:47.4]} 26. g6
{[%clk 0:00:18]} 26... Rf7 {[%clk 0:00:35.5]} 27. gxf7+ {[%clk 0:00:17.6]} 27...
Kxf7 {[%clk 0:00:35.8]} 28. Bc4+ {[%clk 0:00:15.9]} 28... e6 {[%clk 0:00:35.6]}
29. Qh7+ {[%clk 0:00:15]} 29... Kf6 {[%clk 0:00:32.3]} 30. Rdf1# {[%clk
0:00:14.7]} 1-0

[Event "Late-Titled-Tuesday-Blitz-January-30-2024"]
[Site "Chess.com"]
[Date "2024.01.30"]
[Round "2"]
[White "karinachess1"]
[Black "MrTattaglia"]
[Result "0-1"]
[WhiteElo "2616"]
[BlackElo "2973"]
[TimeControl "180+1"]
[EndTime "14:16:53 PST"]
[Termination "MrTattaglia won by resignation"]

1. d4 {[%clk 0:03:00.9]} 1... Nf6 {[%clk 0:02:56.8]} 2. c4 {[%clk 0:03:00.8]}
2... e6 {[%clk 0:02:54.8]} 3. Nc3 {[%clk 0:03:00.8]} 3... d5 {[%clk 0:02:52.8]}
4. cxd5 {[%clk 0:03:00.6]} 4... exd5 {[%clk 0:02:52]} 5. Bg5 {[%clk 0:03:00.7]}
5... Bb4 {[%clk 0:02:51.9]} 6. a3 {[%clk 0:02:55.3]} 6... Bxc3+ {[%clk
0:02:49.9]} 7. bxc3 {[%clk 0:02:56.2]} 7... h6 {[%clk 0:02:49.7]} 8. Bf4 {[%clk
0:02:56.4]} 8... O-O {[%clk 0:02:48.7]} 9. e3 {[%clk 0:02:55.5]} 9... c5 {[%clk
0:02:49.1]} 10. Bd3 {[%clk 0:02:51.7]} 10... Ne4 {[%clk 0:02:41.3]} 11. Ne2
{[%clk 0:02:44.8]} 11... cxd4 {[%clk 0:02:41.3]} 12. Bxe4 {[%clk 0:02:36.2]}
12... dxe4 {[%clk 0:02:41]} 13. cxd4 {[%clk 0:02:34.2]} 13... b6 {[%clk
0:02:34.5]} 14. O-O {[%clk 0:02:31.4]} 14... Ba6 {[%clk 0:02:35]} 15. Rc1 {[%clk
0:02:21.1]} 15... Qd7 {[%clk 0:02:31.9]} 16. Re1 {[%clk 0:02:17.4]} 16... Nc6
{[%clk 0:02:31.4]} 17. Qa4 {[%clk 0:02:14.5]} 17... Bb7 {[%clk 0:02:27.7]} 18.
Red1 {[%clk 0:02:06.6]} 18... Qg4 {[%clk 0:02:22.8]} 19. Ng3 {[%clk 0:01:53.6]}
19... Ne7 {[%clk 0:02:02.2]} 20. h3 {[%clk 0:01:21.6]} 20... Qe6 {[%clk
0:01:58.9]} 21. Rc7 {[%clk 0:01:16.3]} 21... Bc6 {[%clk 0:01:50.8]} 22. Qc2
{[%clk 0:01:08.5]} 22... Bd5 {[%clk 0:01:47.8]} 23. Rc1 {[%clk 0:01:05.6]} 23...
Ng6 {[%clk 0:01:44.1]} 24. Ne2 {[%clk 0:00:55.8]} 24... b5 {[%clk 0:01:43]} 25.
Qc5 {[%clk 0:00:54.6]} 25... Bc4 {[%clk 0:01:41.7]} 26. Rc6 {[%clk 0:00:44.2]}
26... Qd7 {[%clk 0:01:32.1]} 27. Rc7 {[%clk 0:00:43.6]} 27... Qd8 {[%clk
0:01:30.6]} 28. Nc3 {[%clk 0:00:39.7]} 28... Nxf4 {[%clk 0:01:17.4]} 29. exf4
{[%clk 0:00:40.6]} 29... Qf6 {[%clk 0:01:07.2]} 30. Nxe4 {[%clk 0:00:25.6]}
30... Qxf4 {[%clk 0:01:05.4]} 31. Re1 {[%clk 0:00:19.5]} 31... Rae8 {[%clk
0:01:04.3]} 32. Re7 {[%clk 0:00:19.5]} 32... Rd8 {[%clk 0:00:58.6]} 33. g3
{[%clk 0:00:10.6]} 33... Qf3 {[%clk 0:00:53.6]} 34. Nd2 {[%clk 0:00:10.3]} 34...
Qc3 {[%clk 0:00:51.6]} 35. Nxc4 {[%clk 0:00:09.9]} 35... bxc4 {[%clk 0:00:52.3]}
36. Rc7 {[%clk 0:00:08.4]} 36... Qxe1+ {[%clk 0:00:51.8]} 0-1